fUST/lending_fUST_20241023
["ID","MTS","AMOUNT","RATE_DAILY","PERIOD"]
[340683824,1729678255701,-1000.0,0.00016747,2]
[340683825,1729678255714,-851.43100566,0.00016747,2]
[340683826,1729678255723,-1000.0,0.00016747,2]
[340683827,1729678255734,-1000.0,0.00016747,2]
[340683828,1729678255743,-1000.0,0.00016747,2]
[340683829,1729678255754,-998.63598997,0.00016879,2]
[340683830,1729678255763,-1500.0,0.00016947,2]
[340683831,1729678255773,-1501.9335569,0.00016947,2]
[340683832,1729678255782,-500.0,0.00016973,2]
[340683833,1729678255792,-500.0,0.00016973,2]
[340683834,1729678255802,-44.18277556,0.00016986,2]
[340683835,1729678256242,-258.12,0.00016986,2]
[340683836,1729678256638,-197.69722444,0.00016986,2]
[340683837,1729678256649,-500.0,0.00016986,2]
[340683838,1729678256658,-501.38743287,0.00016986,2]
[340683839,1729678256668,-500.0,0.00016986,2]
[340683840,1729678256680,-500.0,0.00016986,2]
[340683841,1729678256692,-738.57,0.00016986,2]
[340683842,1729678256701,-861.25,0.00016986,2]
[340683843,1729678256711,-534.44453897,0.00016986,2]
[340683844,1729678256721,-500.0,0.00016986,2]
[340683845,1729678256733,-500.0,0.00016986,2]
[340683846,1729678256743,-500.0,0.00016986,2]
[340683847,1729678256754,-503.49371337,0.00016986,2]
[340683848,1729678256765,-509.86145865,0.00016986,2]
[340683849,1729678256775,-500.0,0.00016986,2]
[340683850,1729678256786,-500.0,0.00016986,2]
[340683851,1729678256795,-677.59,0.00016986,2]
[340683852,1729678256806,-500.0,0.00016986,2]
[340683853,1729678256817,-500.0,0.00016986,2]
[340683854,1729678256828,-500.0,0.00016986,2]
[340683855,1729678256837,-500.0,0.00016986,2]
[340683856,1729678256847,-500.0,0.00016986,2]
[340683857,1729678256858,-500.0,0.00016986,2]
[340683858,1729678256869,-503.38947305,0.00016986,2]
[340683859,1729678256879,-500.0,0.00016986,2]
[340683860,1729678256889,-500.0,0.00016986,2]
[340683861,1729678256898,-502.30543288,0.00016986,2]
[340683862,1729678256906,-500.0,0.00016986,2]
[340683863,1729678256916,-504.66075797,0.00016986,2]
[340683864,1729678256925,-500.0,0.00016986,2]
[340683865,1729678256935,-500.0,0.00016986,2]
[340683866,1729678256945,-500.0,0.00016986,2]
[340683867,1729678256959,-1020.13,0.00016986,2]
[340683868,1729678256969,-502.27137964,0.00016986,2]
[340683869,1729678256980,-500.0,0.00016986,2]
[340683870,1729678256989,-501.91409813,0.00016986,2]
[340683871,1729678257000,-500.77232297,0.00016986,2]
[340683872,1729678257009,-500.0,0.00016986,2]
[340683873,1729678257020,-506.18595397,0.00016986,2]
[340683874,1729678257030,-500.0,0.00016986,2]
[340683875,1729678257040,-500.0,0.00016986,2]
[340683876,1729678257051,-503.43956491,0.00016986,2]
[340683877,1729678257060,-500.0,0.00016986,2]
[340683878,1729678257070,-681.85,0.00016986,2]
[340683879,1729678257082,-500.0,0.00016986,2]
[340683880,1729678257092,-500.0,0.00016986,2]
[340683881,1729678257103,-500.0,0.00016986,2]
[340683882,1729678257113,-1209.64,0.00016986,2]
[340683883,1729678257124,-501.06209921,0.00016986,2]
[340683884,1729678257133,-769.42,0.00016986,2]
[340683885,1729678257143,-500.0,0.00016986,2]
[340683886,1729678257155,-500.0,0.00016986,2]
[340683887,1729678257166,-500.0,0.00016986,2]
[340683888,1729678257176,-503.04056582,0.00016986,2]
[340683889,1729678257187,-500.0,0.00016986,2]
[340683890,1729678257197,-507.86323312,0.00016986,2]
[340683891,1729678257207,-691.43,0.00016986,2]
[340683892,1729678257217,-500.0,0.00016986,2]
[340683893,1729678257227,-500.0,0.00016986,2]
[340683894,1729678257236,-500.0,0.00016986,2]
[340683895,1729678257245,-500.0,0.00016986,2]
[340683896,1729678257254,-500.0,0.00016986,2]
[340683897,1729678257263,-617.56,0.00016986,2]
[340683898,1729678257272,-502.86381289,0.00016986,2]
[340683899,1729678257282,-500.0,0.00016986,2]
[340683900,1729678257291,-237.48297885,0.00016986,2]
[340683901,1729678257300,-500.0,0.00016986,2]
[340683902,1729678257308,-500.0,0.00016986,2]
[340683903,1729678257318,-500.0,0.00016986,2]
[340683904,1729678257332,-507.63,0.00016986,2]
[340683905,1729678257341,-500.0,0.00016986,2]
[340683906,1729678257352,-500.0,0.00016986,2]
[340683907,1729678257361,-793.87,0.00016986,2]
[340683908,1729678257370,-500.0,0.00016986,2]
[340683909,1729678257380,-500.0,0.00016986,2]
[340683910,1729678257391,-808.52,0.00016986,2]
[340683911,1729678257402,-707.72,0.00016986,2]
[340683912,1729678257413,-500.0,0.00016986,2]
[340683913,1729678257423,-1082.52,0.00016986,2]
[340683914,1729678257433,-262.71893406,0.00016986,2]
[340683915,1729678257442,-500.0,0.00016986,2]
[340683916,1729678257451,-509.74338519,0.00016986,2]
[340683917,1729678257460,-500.0,0.00016986,2]
[340683918,1729678257469,-587.81,0.00016986,2]
[340683919,1729678257478,-500.0,0.00016986,2]
[340683920,1729678257487,-1617.2,0.00016986,2]
[340683921,1729678257496,-500.0,0.00016986,2]
[340683922,1729678257505,-500.0,0.00016986,2]
[340683923,1729678257514,-500.0,0.00016986,2]
[340683924,1729678257524,-797.69,0.00016986,2]
[340683925,1729678257533,-500.0,0.00016986,2]
[340683926,1729678257542,-506.99103367,0.00016986,2]
[340683927,1729678257552,-500.0,0.00016986,2]
[340683928,1729678257561,-500.0,0.00016986,2]
[340683929,1729678257571,-1309.48,0.00016986,2]
[340683930,1729678257582,-500.0,0.00016986,2]
[340683931,1729678257591,-500.0,0.00016986,2]
[340683932,1729678257602,-504.42819789,0.00016986,2]
[340683933,1729678257611,-219.17282204,0.00016986,2]
[340683934,1729678257620,-500.0,0.00016986,2]
[340683935,1729678257631,-500.0,0.00016986,2]
[340683936,1729678257641,-500.92727408,0.00016986,2]
[340683937,1729678257650,-500.0,0.00016986,2]
[340683938,1729678257660,-500.0,0.00016986,2]
[340683939,1729678257671,-557.46,0.00016986,2]
[340683940,1729678257680,-503.24400503,0.00016986,2]
[340683941,1729678257690,-500.0,0.00016986,2]
[340683942,1729678257701,-500.0,0.00016986,2]
[340683943,1729678257710,-587.85,0.00016986,2]
[340683944,1729678257719,-504.82845011,0.00016986,2]
[340683945,1729678257729,-186.23424408,0.00016986,2]
[340683946,1729678257738,-500.0,0.00016986,2]
[340683947,1729678257747,-503.36804635,0.00016986,2]
[340683948,1729678257756,-500.0,0.00016986,2]
[340683949,1729678257765,-504.48213635,0.00016986,2]
[340683950,1729678257774,-500.0,0.00016986,2]
[340683951,1729678257783,-665.52,0.00016986,2]
[340683952,1729678257793,-851.25,0.00016986,2]
[340683953,1729678257802,-200.0,0.00016986,2]
[340683954,1729678257812,-502.66911602,0.00016986,2]
[340683955,1729678257823,-501.05895056,0.00016986,2]
[340683956,1729678257840,-881.79,0.00016986,2]
[340683957,1729678257850,-500.0,0.00016986,2]
[340683958,1729678257860,-503.77757512,0.00016986,2]
[340683959,1729678257872,-562.83,0.00016986,2]
[340683960,1729678257884,-507.84202067,0.00016986,2]
[340683961,1729678257895,-523.99833441,0.00016986,2]
[340683962,1729678257904,-689.39,0.00016986,2]
[340683963,1729678257913,-500.0,0.00016986,2]
[340683964,1729678257922,-587.891975,0.00016986,2]
[340683965,1729678257932,-500.0,0.00016986,2]
[340683966,1729678257942,-502.65121742,0.00016986,2]
[340683967,1729678257952,-500.0,0.00016986,2]
[340683968,1729678257963,-500.0,0.00016986,2]
[340683969,1729678257974,-505.79288538,0.00016986,2]
[340683970,1729678257985,-500.0,0.00016986,2]
[340683971,1729678257994,-500.0,0.00016986,2]
[340683972,1729678258004,-502.92668446,0.00016986,2]
[340683973,1729678258014,-500.0,0.00016986,2]
[340683974,1729678258025,-500.0,0.00016986,2]
[340683975,1729678258034,-500.0,0.00016986,2]
[340683976,1729678258044,-596.61,0.00016986,2]
[340683977,1729678258053,-500.0,0.00016986,2]
[340683978,1729678258063,-500.0,0.00016986,2]
[340683979,1729678258075,-500.0,0.00016986,2]
[340683980,1729678258084,-500.0,0.00016986,2]
[340683981,1729678258095,-786.95,0.00016986,2]
[340683982,1729678258106,-500.0,0.00016986,2]
[340683983,1729678258116,-505.0231446,0.00016986,2]
[340683984,1729678258125,-500.0,0.00016986,2]
[340683985,1729678258134,-500.0,0.00016986,2]
[340683986,1729678258144,-500.0,0.00016986,2]
[340683987,1729678258154,-500.0,0.00016986,2]
[340683988,1729678258163,-553.1,0.00016986,2]
[340683989,1729678258174,-500.0,0.00016986,2]
[340683990,1729678258185,-500.0,0.00016986,2]
[340683991,1729678258195,-500.0,0.00016986,2]
[340683992,1729678258204,-506.3590052,0.00016986,2]
[340683993,1729678258213,-355.6065399,0.00016986,2]
[340683994,1729678258223,-500.0,0.00016986,2]
[340683995,1729678258232,-500.0,0.00016986,2]
[340683996,1729678258242,-591.43340052,0.00016986,2]
[340683997,1729678258251,-515.03,0.00016986,2]
[340683998,1729678258262,-500.0,0.00016986,2]
[340683999,1729678258272,-500.0,0.00016986,2]
[340684000,1729678258283,-500.0,0.00016986,2]
[340684001,1729678258294,-500.0,0.00016986,2]
[340684002,1729678258303,-668.89,0.00016986,2]
[340684003,1729678258313,-593.45,0.00016986,2]
[340684004,1729678258323,-525.59024304,0.00016986,2]
[340684005,1729678258334,-500.0,0.00016986,2]
[340684006,1729678258344,-500.0,0.00016986,2]
[340684007,1729678258354,-871.09,0.00016986,2]
[340684008,1729678258363,-667.15,0.00016986,2]
[340684009,1729678258374,-500.76838464,0.00016986,2]
[340684010,1729678258386,-500.0,0.00016986,2]
[340684011,1729678258399,-501.57778,0.00016986,2]
[340684012,1729678258410,-801.24,0.00016986,2]
[340684013,1729678258421,-500.0,0.00016986,2]
[340684014,1729678258431,-501.74033388,0.00016986,2]
[340684015,1729678258440,-500.0,0.00016986,2]
[340684016,1729678258449,-500.0,0.00016986,2]
[340684017,1729678258458,-501.61266843,0.00016986,2]
[340684018,1729678258470,-500.0,0.00016986,2]
[340684019,1729678258479,-500.0,0.00016986,2]
[340684020,1729678258489,-500.0,0.00016986,2]
[340684021,1729678258498,-502.17316078,0.00016986,2]
[340684022,1729678258508,-589.18,0.00016986,2]
[340684023,1729678258517,-500.0,0.00016986,2]
[340684024,1729678258526,-500.0,0.00016986,2]
[340684025,1729678258536,-511.32488015,0.00016986,2]
[340684026,1729678258545,-500.0,0.00016986,2]
[340684027,1729678258554,-705.17,0.00016986,2]
[340684028,1729678258564,-569.68960701,0.00016986,2]
[340684029,1729678258574,-642.92,0.00016986,2]
[340684030,1729678258584,-1012.25,0.00016986,2]
[340684031,1729678258594,-500.0,0.00016986,2]
[340684032,1729678258612,-691.6,0.00016986,2]
[340684033,1729678258621,-501.37593657,0.00016986,2]
[340684034,1729678258630,-500.0,0.00016986,2]
[340684035,1729678258641,-500.0,0.00016986,2]
[340684036,1729678258652,-839.49,0.00016986,2]
[340684037,1729678258661,-500.0,0.00016986,2]
[340684038,1729678258672,-503.82980843,0.00016986,2]
[340684039,1729678258683,-500.0,0.00016986,2]
[340684040,1729678258695,-500.0,0.00016986,2]
[340684041,1729678258704,-1232.49,0.00016986,2]
[340684042,1729678258714,-503.74083496,0.00016986,2]
[340684043,1729678258724,-508.2161237,0.00016986,2]
[340684044,1729678258735,-503.7989494,0.00016986,2]
[340684045,1729678258746,-500.0,0.00016986,2]
[340684046,1729678258756,-509.24528204,0.00016986,2]
[340684047,1729678258767,-500.0,0.00016986,2]
[340684048,1729678258779,-500.0,0.00016986,2]
[340684049,1729678258788,-500.0,0.00016986,2]
[340684050,1729678258797,-1023.83,0.00016986,2]
[340684051,1729678258807,-660.68,0.00016986,2]
[340684052,1729678258818,-502.68883923,0.00016986,2]
[340684053,1729678258829,-311.03660675,0.00016986,2]
[340684054,1729678258850,-188.96339325,0.00016986,2]
[340684055,1729678258859,-500.0,0.00016986,2]
[340684056,1729678258868,-521.70868974,0.00016986,2]
[340684057,1729678258878,-500.0,0.00016986,2]
[340684058,1729678258888,-500.0,0.00016986,2]
[340684059,1729678258898,-500.0,0.00016986,2]
[340684060,1729678258909,-500.0,0.00016986,2]
[340684061,1729678258918,-500.0,0.00016986,2]
[340684062,1729678258927,-500.0,0.00016986,2]
[340684063,1729678258938,-500.0,0.00016986,2]
[340684064,1729678258949,-500.0,0.00016986,2]
[340684065,1729678258964,-504.32688107,0.00016986,2]
[340684066,1729678258973,-500.0,0.00016986,2]
[340684067,1729678258983,-639.28,0.00016986,2]
[340684068,1729678258994,-506.0,0.00016986,2]
[340684069,1729678259003,-701.74,0.00016986,2]
[340684070,1729678259013,-3206.13,0.00016986,2]
[340684071,1729678259023,-501.42401615,0.00016986,2]
[340684072,1729678259033,-603.41969678,0.00016986,2]
[340684073,1729678259043,-546.24711267,0.00016986,2]
[340684074,1729678259053,-500.0,0.00016986,2]
[340684075,1729678259063,-500.0,0.00016986,2]
[340684076,1729678259074,-500.0,0.00016986,2]
[340684077,1729678259085,-504.38521657,0.00016986,2]
[340684078,1729678259095,-500.0,0.00016986,2]
[340684079,1729678259106,-500.0,0.00016986,2]
[340684080,1729678259115,-1335.18,0.00016986,2]
[340684081,1729678259125,-500.0,0.00016986,2]
[340684082,1729678259135,-506.55467572,0.00016986,2]
[340684083,1729678259144,-501.805955,0.00016986,2]
[340684084,1729678259153,-500.0,0.00016986,2]
[340684085,1729678259163,-500.0,0.00016986,2]
[340684086,1729678259175,-500.0,0.00016986,2]
[340684087,1729678259184,-1003.2,0.00016986,2]
[340684088,1729678259194,-603.51370426,0.00016986,2]
[340684089,1729678259206,-500.0,0.00016986,2]
[340684090,1729678259215,-500.0,0.00016986,2]
[340684091,1729678259225,-502.89155593,0.00016986,2]
[340684092,1729678259235,-500.0,0.00016986,2]
[340684093,1729678259245,-500.0,0.00016986,2]
[340684094,1729678259254,-500.0,0.00016986,2]
[340684095,1729678259264,-500.0,0.00016986,2]
[340684096,1729678259274,-500.0,0.00016986,2]
[340684097,1729678259285,-638.75,0.00016986,2]
[340684098,1729678259296,-500.0,0.00016986,2]
[340684099,1729678259305,-597.63,0.00016986,2]
[340684100,1729678259315,-500.0,0.00016986,2]
[340684101,1729678259326,-500.0,0.00016986,2]
[340684102,1729678259336,-500.0,0.00016986,2]
[340684103,1729678259346,-500.0,0.00016986,2]
[340684104,1729678259356,-289.75341465,0.00016986,2]
[340684105,1729678259367,-500.0,0.00016986,2]
[340684106,1729678259378,-697.64,0.00016986,2]
[340684107,1729678259389,-631.94,0.00016986,2]
[340684108,1729678259398,-509.44207434,0.00016986,2]
[340684109,1729678259408,-355.09954588,0.00016986,2]
[340684110,1729678259418,-500.0,0.00016986,2]
[340684111,1729678259429,-1403.67,0.00016986,2]
[340684112,1729678259439,-500.0,0.00016986,2]
[340684113,1729678259450,-500.0,0.00016986,2]
[340684114,1729678259460,-746.54,0.00016986,2]
[340684115,1729678259471,-1001.0,0.00016986,2]
[340684116,1729678259481,-503.16190903,0.00016986,2]
[340684117,1729678259490,-598.87,0.00016986,2]
[340684118,1729678259500,-500.0,0.00016986,2]
[340684119,1729678259509,-500.0,0.00016986,2]
[340684120,1729678259519,-913.6,0.00016986,2]
[340684121,1729678259529,-500.0,0.00016986,2]
[340684122,1729678259538,-826.04,0.00016986,2]
[340684123,1729678259548,-500.0,0.00016986,2]
[340684124,1729678259559,-500.0,0.00016986,2]
[340684125,1729678259569,-848.11,0.00016986,2]
[340684126,1729678259579,-500.0,0.00016986,2]
[340684127,1729678259589,-659.8,0.00016986,2]
[340684128,1729678259599,-500.0,0.00016986,2]
[340684129,1729678259608,-24744.69,0.00016986,2]
[340684130,1729678259618,-500.0,0.00016986,2]
[340684131,1729678259628,-843.41,0.00016986,2]
[340684132,1729678259638,-500.0,0.00016986,2]
[340684133,1729678259647,-879.15,0.00016986,2]
[340684134,1729678259820,-787.49,0.00016986,2]
[340684135,1729678259830,-500.0,0.00016986,2]
[340684136,1729678259841,-500.0,0.00016986,2]
[340684137,1729678259852,-4071.27,0.00016986,2]
[340684138,1729678259863,-612.23431221,0.00016986,2]
[340684139,1729678259872,-1818.27,0.00016986,2]
[340684140,1729678259883,-500.0,0.00016986,2]
[340684141,1729678259895,-848.4,0.00016986,2]
[340684142,1729678259905,-500.0,0.00016986,2]
[340684143,1729678259916,-500.0,0.00016986,2]
[340684144,1729678259925,-955.9,0.00016986,2]
[340684145,1729678259936,-500.0,0.00016986,2]
[340684146,1729678259945,-250.0,0.00016986,2]
[340684147,1729678259956,-500.0,0.00016986,2]
[340684148,1729678259966,-893.06,0.00016986,2]
[340684149,1729678259976,-500.0,0.00016986,2]
[340684150,1729678259986,-867.09,0.00016986,2]
[340684151,1729678259995,-1601.46,0.00016986,2]
[340684152,1729678260007,-1612.96,0.00016986,2]
[340684153,1729678260017,-500.0,0.00016986,2]
[340684154,1729678260026,-500.0,0.00016986,2]
[340684155,1729678260037,-504.39389203,0.00016986,2]
[340684156,1729678260046,-500.0,0.00016986,2]
[340684157,1729678260055,-1001.59,0.00016986,2]
[340684158,1729678260065,-500.0,0.00016986,2]
[340684159,1729678260075,-341.18078885,0.00016986,2]
[340684160,1729678260085,-500.0,0.00016986,2]
[340684161,1729678260095,-708.73,0.00016986,2]
[340684162,1729678260105,-515.53330863,0.00016986,2]
[340684163,1729678260115,-539.0547486,0.00016986,2]
[340684164,1729678260124,-507.0216,0.00016986,2]
[340684165,1729678260133,-500.0,0.00016986,2]
[340684166,1729678260144,-500.0,0.00016986,2]
[340684167,1729678260154,-500.0,0.00016986,2]
[340684168,1729678260163,-787.34,0.00016986,2]
[340684169,1729678260174,-683.05,0.00016986,2]
[340684170,1729678260184,-500.0,0.00016986,2]
[340684171,1729678260193,-500.0,0.00016986,2]
[340684172,1729678260204,-935.55,0.00016986,2]
[340684173,1729678260213,-500.0,0.00016986,2]
[340684174,1729678260222,-500.0,0.00016986,2]
[340684175,1729678260233,-544.62839634,0.00016986,2]
[340684176,1729678260243,-500.0,0.00016986,2]
[340684177,1729678260254,-812.51,0.00016986,2]
[340684178,1729678260266,-500.0,0.00016986,2]
[340684179,1729678260277,-500.98977434,0.00016986,2]
[340684180,1729678260286,-500.0,0.00016986,2]
[340684181,1729678260296,-819.92,0.00016986,2]
[340684182,1729678260305,-504.85714748,0.00016986,2]
[340684183,1729678260315,-8650.24,0.00016986,2]
[340684184,1729678260326,-662.39,0.00016986,2]
[340684185,1729678260337,-995.57,0.00016986,2]
[340684186,1729678260347,-500.0,0.00016986,2]
[340684187,1729678260357,-278.3985302,0.00016986,2]
[340684188,1729678260702,3000.0,0.00041095,120]
[340684189,1729678261081,-497.12999998,0.00016438,2]
[340684190,1729678261097,-100.08000002,0.00016438,2]
[340684191,1729678261107,-500.0,0.00016438,2]
[340684192,1729678261117,-333.11999998,0.00016438,2]
[340684193,1729678261245,-595.29122988,0.00015361,2]
[340684194,1729678261257,-166.88000002,0.00016438,2]
[340684195,1729678261266,-541.84091383,0.00016438,2]
[340684196,1729678261276,-500.0,0.00016438,2]
[340684197,1729678261286,-500.0,0.00016438,2]
[340684198,1729678261296,-160.15364195,0.00016473,2]
[340684199,1729678261305,-500.0,0.00016473,2]
[340684200,1729678261314,-448.63421432,0.00016712,2]
[340684201,1729678262051,3000.0,0.00041095,118]
[340684202,1729678275403,3000.0,0.00041095,116]
[340684204,1729678298209,999.0,0.00034246,120]
[340684205,1729678298525,999.0,0.00035205,120]
[340684206,1729678298850,999.0,0.00036164,120]
[340684207,1729678299126,999.0,0.00037123,120]
[340684208,1729678299185,737.40078781,0.0004,120]
[340684209,1729678299463,999.0,0.00038082,120]
[340684210,1729678299812,999.0,0.00039041,120]
[340684211,1729678300091,999.0,0.0004,120]
[340684212,1729678300966,330.22686994,0.00040958,120]
[340684214,1729678309175,3000.0,0.00041095,114]
[340684215,1729678318765,3000.0,0.00041095,112]
[340684217,1729678327260,500.0,0.00041096,30]
[340684218,1729678352858,3000.0,0.00041095,110]
[340684219,1729678358319,4386.92147852,0.00041,30]
[340684221,1729678373411,10006.94008131,0.00041,30]
[340684222,1729678396211,2903.37851472,0.0003726,30]
[340684223,1729678396543,2903.37851472,0.0003976,30]
[340684224,1729678410116,3000.0,0.00041095,105]
[340684225,1729678421811,2996.97,0.00041095,60]
[340684226,1729678425290,88800.0,0.0004,30]
[340684228,1729678449026,3298.5638259,0.00041095,30]
[340684231,1729678478526,3000.0,0.00041095,100]
[340684235,1729678559521,500.0,0.00041096,30]
[340684236,1729678569891,1893.92,0.00041,30]
[340684237,1729678577311,500.0,0.00041095,30]
[340684242,1729678612400,500.0,0.00041096,30]
[340684244,1729678643164,1703.304966,0.00032877,120]
[340684245,1729678643231,1703.304966,0.00038356,120]
[340684246,1729678686275,603.36,0.00041096,30]
[340684262,1729678716091,500.0,0.00041095,120]
[340684264,1729678733374,500.0,0.00041095,120]
[340684265,1729678746449,941.38735661,0.00041095,120]
[340684266,1729678775985,12172.24915942,0.00041,30]
[340684267,1729678788630,806378.55789812,0.00041096,120]
[340684278,1729679322017,18803.46474308,0.0001,2]
[340684331,1729679432408,-300.0,0.00013565,2]
[340684332,1729679432419,-155.8688184,0.00013565,2]
[340684333,1729679432433,-144.1311816,0.00013565,2]
[340684334,1729679432442,-24880.0,0.00013566,2]
[340684335,1729679432451,-396.639999,0.00013566,2]
[340684336,1729679432460,-250.0,0.00013699,2]
[340684337,1729679432469,-400.0,0.00013973,2]
[340684338,1729679432479,-420.0,0.00014868,2]
[340684339,1729679432488,-216.06432543,0.000149,2]
[340684340,1729679432499,-239.16449397,0.000149,2]
[340684356,1729679439060,-1234.9190345,0.000149,2]
[340684363,1729679440434,-1664.7293888,0.000149,2]
[340686392,1729680644280,-250.0,0.00013699,2]
[340686394,1729680644290,-200.0,0.00013973,2]
[340686396,1729680644301,-247.31,0.00013973,2]
[340686398,1729680644314,-132.69,0.00013973,2]
[340686401,1729680644326,-3436.02621645,0.00014786,2]
[340686608,1729681831812,-250.0,0.00013699,2]
[340686610,1729681831822,-163.75462519,0.000137,2]
[340686612,1729681831832,-157.894737,0.00013771,2]
[340686614,1729681831841,-157.894737,0.00013811,2]
[340686616,1729681831850,-157.894737,0.00013851,2]
[340686618,1729681831859,-157.894737,0.0001389,2]
[340686620,1729681831868,-157.894737,0.0001393,2]
[340686622,1729681831877,-157.894737,0.0001397,2]
[340686624,1729681831887,-361.0,0.00013973,2]
[340686626,1729681831896,-195.0,0.00013973,2]
[340686628,1729681831906,-157.894737,0.0001401,2]
[340686630,1729681831915,-157.894737,0.0001405,2]
[340686632,1729681831924,-157.894737,0.0001409,2]
[340686634,1729681831934,-157.894737,0.0001413,2]
[340686636,1729681831948,-157.894737,0.00014169,2]
[340686637,1729681831957,-157.894737,0.00014209,2]
[340686638,1729681831966,-157.894737,0.00014249,2]
[340686639,1729681831976,-157.894737,0.00014289,2]
[340686640,1729681831986,-157.894737,0.00014329,2]
[340686641,1729681831996,-157.894737,0.00014369,2]
[340686642,1729681832005,-157.894737,0.00014409,2]
[340686643,1729681832014,-157.894737,0.00014448,2]
[340686644,1729681832024,-300.0,0.00014454,2]
[340686645,1729681832033,-5299.65790645,0.00014455,2]
[340686646,1729681832043,-157.894737,0.00014488,2]
[340686647,1729681832256,-8892.41560661,0.00014489,2]
[340686648,1729681832266,-210.62887339,0.000149,2]
[340686649,1729681832275,-500.0,0.00014999,2]
[340686650,1729681832284,-500.0,0.00014999,2]
[340686651,1729681832293,-201.79974867,0.00014999,2]
[340686652,1729681832303,-500.0,0.00014999,2]
[340686653,1729681832311,-500.0,0.00014999,2]
[340686654,1729681832321,-500.0,0.00014999,2]
[340686655,1729681832330,-300.0,0.00014999,2]
[340686656,1729681832339,-500.0,0.00014999,2]
[340686657,1729681832348,-323.01270495,0.00014999,2]
[340686678,1729681837846,-358.4793029,0.00015,2]
[340686680,1729681838057,-488.38253191,0.00015,2]
[340686720,1729681843138,-956.96363081,0.00015,2]
[340686748,1729682085100,2891.16842535,0.00022,120]
[340686859,1729683711348,5269.56829195,5.23e-06,2]
[340686860,1729683711789,5269.56829196,5.52e-06,2]
[340686872,1729684232171,-8577.6557515,0.00013,2]
[340686873,1729684232181,-163.502737,0.00013442,2]
[340686874,1729684232190,-163.502737,0.00013483,2]
[340686875,1729684232199,-163.502737,0.00013524,2]
[340686876,1729684232209,-163.502737,0.00013565,2]
[340686877,1729684232219,-163.502737,0.00013607,2]
[340686878,1729684232229,-163.502737,0.00013648,2]
[340686879,1729684232238,-163.502737,0.00013689,2]
[340686880,1729684232249,-300.0,0.00013695,2]
[340686881,1729684232258,-250.0,0.00013699,2]
[340686882,1729684232267,-163.502737,0.0001373,2]
[340686883,1729684232276,-4769.6921158,0.00013771,2]
[340686884,1729684232286,-163.502737,0.00013771,2]
[340686885,1729684232296,-527.0,0.00013773,2]
[340686886,1729684232305,-1190.0,0.00013773,2]
[340686887,1729684232318,-1151.0,0.00013773,2]
[340686888,1729684232329,-151.0,0.00013773,2]
[340686889,1729684232339,-303.402582,0.00013773,2]
[340686890,1729684232348,-303.402582,0.00013773,2]
[340686891,1729684232357,-253.691186,0.00013773,2]
[340686892,1729684232367,-253.691186,0.00013773,2]
[340686893,1729684232376,-151.0,0.00013773,2]
[340686894,1729684232390,-246.421474,0.00013773,2]
[340686895,1729684232399,-151.0,0.00013773,2]
[340686896,1729684232409,-246.421474,0.00013773,2]
[340686897,1729684232419,-151.0,0.00013773,2]
[340686898,1729684232428,-151.0,0.00013773,2]